Workbook

Sheet Смета
AC3: приложение № {1} к договору от {хх.хх.хххх} № {ххх}
F5: СОГЛАСОВАНО | AM5: УТВЕРЖДЕНО
F6: {должность согласовывающего} | AM6: {должность утверждающего}
P8: {Ф.И.О } | AW8: {Ф.И.О }
F9: подпись | AM9: подпись
F10: " | I10: " | T10: г. | AM10: " | AP10: " | BA10: г.
AB16: КАЛЬКУЛЯЦИЯ (СМЕТА) №
C17: на оказание услуг по организации и обеспечению строительства объекта в объеме функций заказчика, предусмотренных законодательством
C19: Объект строительства: | BL19: дата если не сегодня
C21: Заказчик: | O21: {заказчик}
C22: Инженерная организация: | O22: {инженерная организация}
C24: Смета составлена по состоянию на: | S24: =IF(ISBLANK(BL20),TODAY(),BL20) -> 2024-03-29 | Y24: Установленная стоим. нормо-дня: | AQ24: 307.7 | AV24: по состоянию на: | BE24: 01.07.2023
C25: Дата составления ССР: | P25: 05.11.2023 | W25: IССР | Y25: = | Z25: 1,0067 х 1,0067 х 1,0067 х 1,0067 | AM25: = | AN25: =1.0067 * 1.0067 * 1.0067 * 1.0067 -> 1.027070545 | AS25: НСССР | AV25: = | AW25: =$AQ$24 -> 307.7 | BA25: х | BB25: =AN25 -> 1.027070545 | BF25: = | BG25: =BB25*AW25 -> 316.0296067
C26: Дата заключения договора: | P26: 01.09.2023 | V26: IЗ.ДОГ | Y26: = | Z26: 1,0067 х 1,0067 | AM26: = | AN26: =1.0067 * 1.0067 -> 1.01344489 | AR26: НСЗ.ДОГ | AV26: = | AW26: =$AQ$24 -> 307.7 | BA26: х | BB26: =AN26 -> 1.01344489 | BF26: = | BG26: =BB26*AW26 -> 311.8369927
D29: Характеристики объекта строительства | AJ29: Наименование натурального показателя | AR29: Значение натураль-ного показателя | AX29: Характеристики объекта инжиниринга, усложняющие (упрощающие) факторы
D30: объект строительства | P30: =IF([1]нзт3!B12=[1]нзт3!D7,[1]нзт3!D7,IF([1]нзт3!B12=[1]нзт3!D8,[1]нзт3!D8,IF([1]нзт3!B12=[1]нзт3!D9,[1]нзт3!D9,IF([1]нзт3!B12=[1]нзт3!D10,[1]нзт3!D10,[1]нзт3!D11)))) -> (К-3) здания и сооружения третьего класса сложности | AJ30: =IF([1]нзт1!P6=[1]нзт1!R3,[1]нзт1!R3,IF([1]нзт1!P6=[1]нзт1!R4,[1]нзт1!R4,[1]нзт1!R5)) -> объект производственного назначения
D31: =RIGHT([1]нзт2!L1, LEN([1]нзт2!L1) - MATCH( TRUE, MID([1]нзт2!L1, ROW( INDIRECT( "1:"&LEN( [1]нзт2!L1 ))), 1)>="A", 0) +1) -> Физкультурно-оздоровительный спортивный объект, кв.м. | AJ31: =IF(AR31>0,[1]нзт2!A4,"") -> м² | AR31: 49
A32: TRUE | D32: предельная стоимость | AJ32: тыс.руб. | AR32: 17583
A33: 20 | D33: Удаление и пересадка объектов растительного мира | AJ33: площадь участка, га | AX33: плотность растений 150-300 единиц на площади 0,6 Га
D34: Снос одноэтажного жилого дома 105 м2 чистой площади | AJ34: стоим. сноса, тыс.руб.
D35: Вынос сети водопровода диаметром 250 мм | AJ35: протяженность, м.п.
D36: Внеплощадочные инженерные сети и сооружения к жилому многоквартирному дому:
D37: Хозяйственно-бытовая канализация диаметром 160 мм | AJ37: протяженность, м.п. | AX37: исскуственное основание -100м; уклон более 30% - 60м
D38: Местный проезд | AJ38: протяженность, км
AM42: Смета составлена по состоянию на: | BE42: =S24 -> 2024-03-29
C43: Обоснование | Z43: Расчет | BE43: Результат
C44: 1 | E44: УСЛУГИ ПО ИНИЦИАЦИИ ПРОЕКТА
C45: =[1]график!A4 -> 1.1 | E45: =[1]график!B4 -> обеспечение проработки инвестиционного замысла и выбора оптимального решения | BC45: не пред. в ССР
C46: Индивидуальные НЗТ | Z46: период: | AD46: =IF([1]график!C4>0,[1]график!C4,"") ->  | AI46: - | AJ46: =IF([1]график!E4>0,[1]график!E4,"") ->  | AO46: IН | AQ46: = | AR46: =[1]график!G4 ->  | AV46: IУ | AX46: = | AY46: =[1]график!F4 -> 
C47: (расчет [И1]) | Z47: НЗТ | AC47: = | BC47: =AD47 -> 0 | BH47: ч-дн.
C48: =IF($A$32=TRUE,"конкурсный коэффициент / НДС","конкурсный коэффициент") -> конкурсный коэффициент / НДС | Z48: Кконкурс | AF48: = | AG48: 1 | AV48: =IF($A$32=TRUE,"НДС "&$A$33&"% =","") -> НДС 20% = | BC48: =IF(AND([1]график!C4>0,$A$32=TRUE),ROUND((AD47*$AQ$24*AR46*(1+0.5*(AY46-1))*AG48)*$A$33/100,2),"") ->  | BH48: =IF(AND([1]график!C4>0,$A$32=TRUE),"руб.","") -> 
Z49: ЦПР | AC49: = | AD49: =IF(AND([1]график!C4>0,$A$32=TRUE),CONCATENATE("[",AD47," x ",$AQ$24," x ",AR46," x [1 + 0,5 x (",AY46," - 1)] х ",AG48,"] + ",BC48," = "),CONCATENATE("[",AD47," x ",$AQ$24," x ",AR46," x [1 + 0,5 x (",AY46," - 1)] х ",AG48,"] = ")) -> [ x 307,7 x x [1 + 0,5 x ( - 1)] х 1] = | BC49: =IFERROR(IF(AND([1]график!C4>0,$A$32=TRUE),ROUND(AD47*$AQ$24*AR46*(1+0.5*(AY46-1))*AG48+BC48,2),ROUND(AD47*$AQ$24*AR46*(1+0.5*(AY46-1))*AG48,2)),) -> 0 | BH49: руб. | BL49: =BC49*20/120 -> 0 | BN49: =381.74-318.12 -> 63.62
C50: =[1]график!A5 -> 1.2 | E50: =[1]график!B5 -> разработка и согласование задания на разработку предпроектной документации | BC50: п.31.1 гл. 10 ССР
C51: ="Приложение 2 МУ, табл. 2.1, поз. "&IF([1]нзт1!P6=[1]нзт1!R3,[1]нзт1!Q3,IF([1]нзт1!P6=[1]нзт1!R4,[1]нзт1!Q4,[1]нзт1!Q5)) -> Приложение 2 МУ, табл. 2.1, поз. И020102а | Z51: период: | AD51: =IF([1]график!C5>0,[1]график!C5,"") ->  | AI51: - | AJ51: =IF([1]график!E5>0,[1]график!E5,"") ->  | AO51: IН | AQ51: = | AR51: =[1]график!F5 ->  | AV51: IУ | AX51: = | AY51: =[1]график!G5 -> 
C52: =IF([1]нзт1!U4=[1]нзт1!U2,"(разрабатывается в полном объеме)","(разрабатывается в сокращенном объеме (50%))") -> (разрабатывается в полном объеме) | Z52: НЗТ | AC52: = | AD52: =IF([1]график!C5>0,IF([1]нзт1!P6=[1]нзт1!R3,[1]нзт1!S3,IF([1]нзт1!P6=[1]нзт1!R4,[1]нзт1!S4,[1]нзт1!S5)),"") ->  | BC52: =IF([1]график!C5>0,AD52,) -> 0 | BH52: ч-дн.
C53: =IF($A$32=TRUE,"конкурсный коэффициент / НДС","конкурсный коэффициент") -> конкурсный коэффициент / НДС | Z53: Кконкурс | AF53: = | AG53: 1 | AV53: =IF($A$32=TRUE,"НДС "&$A$33&"% =","") -> НДС 20% = | BC53: =IF(AND([1]график!C5>0,$A$32=TRUE),ROUND((AD52*$AQ$24*AR51*(1+0.5*(AY51-1))*AG53)*$A$33/100,2),"") ->  | BH53: =IF(AND([1]график!C5>0,$A$32=TRUE),"руб.","") -> 
Z54: ЦПР | AC54: = | AD54: =IF(AND([1]график!C5>0,$A$32=TRUE),CONCATENATE("[",AD52," x ",$AQ$24," x ",AR51," x [1 + 0,5 x (",AY51," - 1)] х ",AG53,"] + ",BC53," = "),CONCATENATE("[",AD52," x ",$AQ$24," x ",AR51," x [1 + 0,5 x (",AY51," - 1)] х ",AG53,"] = ")) -> [ x 307,7 x x [1 + 0,5 x ( - 1)] х 1] = | BC54: =IFERROR(IF(AND([1]график!C5>0,$A$32=TRUE),ROUND(AD52*$AQ$24*AR51*(1+0.5*(AY51-1))*AG53+BC53,2),ROUND(AD52*$AQ$24*AR51*(1+0.5*(AY51-1))*AG53,2)),) -> 0 | BH54: руб. | BL54: =BC54*20/120 -> 0 | BN54: =381.74-318.12 -> 63.62
C55: =[1]график!A6 -> 1.3 | E55: =[1]график!B6 -> разработка и согласование декларации о намерениях | BC55: п.31.1 гл. 10 ССР
C56: ="Приложение 2 МУ, табл. 2.2, поз. "&IF([1]нзт1!P6=[1]нзт1!R3,[1]нзт1!Q10,IF([1]нзт1!P6=[1]нзт1!R4,[1]нзт1!Q11,[1]нзт1!Q12)) -> Приложение 2 МУ, табл. 2.2, поз. И020202а | Z56: период: | AD56: =IF([1]график!C6>0,[1]график!C6,"") ->  | AI56: - | AJ56: =IF([1]график!E6>0,[1]график!E6,"") ->  | AO56: IН | AQ56: = | AR56: =[1]график!F6 ->  | AV56: IУ | AX56: = | AY56: =[1]график!G6 -> 
Z57: НЗТ | AC57: = | AD57: =IF([1]график!C6>0,IF([1]нзт1!P6=[1]нзт1!R3,[1]нзт1!S10,IF([1]нзт1!P6=[1]нзт1!R4,[1]нзт1!S11,[1]нзт1!S12)),"") ->  | BC57: =IF([1]график!C6>0,AD57,) -> 0 | BH57: ч-дн.
C58: =IF($A$32=TRUE,"конкурсный коэффициент / НДС","конкурсный коэффициент") -> конкурсный коэффициент / НДС | Z58: Кконкурс | AF58: = | AG58: 1 | AV58: =IF($A$32=TRUE,"НДС "&$A$33&"% =","") -> НДС 20% = | BC58: =IF(AND([1]график!C6>0,$A$32=TRUE),ROUND((AD57*$AQ$24*AR56*(1+0.5*(AY56-1))*AG58)*$A$33/100,2),"") ->  | BH58: =IF(AND([1]график!C6>0,$A$32=TRUE),"руб.","") -> 
Z59: ЦПР | AC59: = | AD59: =IF(AND([1]график!C6>0,$A$32=TRUE),CONCATENATE("[",AD57," x ",$AQ$24," x ",AR56," x [1 + 0,5 x (",AY56," - 1)] х ",AG58,"] + ",BC58," = "),CONCATENATE("[",AD57," x ",$AQ$24," x ",AR56," x [1 + 0,5 x (",AY56," - 1)] х ",AG58,"] = ")) -> [ x 307,7 x x [1 + 0,5 x ( - 1)] х 1] = | BC59: =IFERROR(IF(AND([1]график!C6>0,$A$32=TRUE),ROUND(AD57*$AQ$24*AR56*(1+0.5*(AY56-1))*AG58+BC58,2),ROUND(AD57*$AQ$24*AR56*(1+0.5*(AY56-1))*AG58,2)),) -> 0 | BH59: руб. | BL59: =BC59*20/120 -> 0
C60: Итого по группе 1: | AY60: НЗТ | BB60: = | BC60: =BC57+BC52+BC47 -> 0 | BH60: ч-дн.
AY61: ЦПР | BB61: = | BC61: =BC59+BC54+BC49 -> 0 | BH61: руб.
C62: 2 | E62: =[1]график!B7 -> УСЛУГИ ПО РАЗРАБОТКЕ ПРЕДПРОЕКТНОЙ ДОКУМЕНТАЦИИ
C63: =[1]график!A8 -> 2.1 | E63: =[1]график!B8 -> разработка и согласование обоснования инвестиций | BC63: гл. 1 ССР
C64: =IF([1]график!C8>0,"Приложение 2 МУ, табл. 2.3, поз. "&[1]нзт2!A2&"-"&[1]нзт2!A3,"") ->  | Z64: период: | AD64: =IF([1]график!C8>0,[1]график!C8,"") ->  | AI64: - | AJ64: =IF([1]график!E8>0,[1]график!E8,"") ->  | AO64: IН | AQ64: = | AR64: =[1]график!F8 ->  | AV64: IУ | AX64: = | AY64: =[1]график!G8 -> 
Z65: Xмин | AC65: = | AD65: =[1]нзт2!$E$2 -> 300 | AH65: НЗТмин | AM65: = | AN65: =[1]нзт2!$C$2 -> 9.5
Z66: Xмакс | AC66: = | AD66: =[1]нзт2!$E$3 -> 1000 | AH66: НЗТмакс | AM66: = | AN66: =[1]нзт2!$C$3 -> 12.1
Z67: НЗТ | AC67: = | AD67: =IF([1]график!C8>0,CONCATENATE(AN65," + [ (",AN66," - ", AN65,") / (",AD66," - ", AD65,") ] x (",F69," - ",AD65,") = "),"") ->  | BC67: =IF([1]график!C8>0,ROUND(AN65 + ((AN66-AN65) / (AD66-AD65)) * (F69-AD65),2),0) -> 0 | BH67: ч-дн. | BL67: ИНТЕРПОЛЯЦИЯ
C68: =IF($A$32=TRUE,"конкурсный коэффициент / НДС","конкурсный коэффициент") -> конкурсный коэффициент / НДС | Z68: Кконкурс | AF68: = | AG68: 1 | AV68: =IF($A$32=TRUE,"НДС "&$A$33&"% =","") -> НДС 20% = | BC68: =IF(AND([1]график!C8>0,$A$32=TRUE),ROUND(BC67*$AQ$24*AR64*(1+0.5*(AY64-1))*AG68*$A$33/100,2),"") ->  | BH68: =IF(AND([1]график!C8>0,$A$32=TRUE),"руб.","") -> 
C69: ХОБ | E69: = | F69: =AR31 -> 49 | K69: =[1]нзт2!A4 -> м² | Z69: ЦПР | AC69: = | AD69: =IF(AND([1]график!C8>0,$A$32=TRUE),CONCATENATE("[",BC67," x ",$AQ$24," x ",AR64," x [1 + 0,5 x (",AY64," - 1)] х ",AG68,"] + ",BC68," = "),CONCATENATE("[",BC67," x ",$AQ$24," x ",AR64," x [1 + 0,5 x (",AY64," - 1)] х ",AG68,"] = ")) -> [0 x 307,7 x x [1 + 0,5 x ( - 1)] х 1] = | BC69: =IFERROR(IF(AND([1]график!C8>0,$A$32=TRUE),ROUND(BC67*$AQ$24*AR64*(1+0.5*(AY64-1))*AG68+BC68,2),ROUND(BC67*$AQ$24*AR64*(1+0.5*(AY64-1))*AG68,2)),) -> 0 | BH69: руб. | BL69: =BC69*20/120 -> 0
C70: =[1]график!A9 -> 2.2 | E70: =[1]график!B9 -> разработка и согласование плана управления проектом | BC70: гл. 1 ССР
C71: =IF([1]график!C9>0,"Приложение 2 МУ, табл. 2.3, поз. "&[1]нзт2!A2&"-"&[1]нзт2!A3&" ("&AY72*100&"%)","") ->  | Z71: период: | AD71: =IF([1]график!C9>0,[1]график!C9,"") ->  | AI71: - | AJ71: =IF([1]график!E9>0,[1]график!E9,"") ->  | AO71: IН | AQ71: = | AR71: =[1]график!F9 ->  | AV71: IУ | AX71: = | AY71: =[1]график!G9 -> 
Z72: Xмин | AC72: = | AD72: =[1]нзт2!$E$2 -> 300 | AH72: НЗТмин | AM72: = | AN72: =[1]нзт2!$C$2 -> 9.5 | AU72: УВНЗТ | AX72: = | AY72: 0.2
Z73: Xмакс | AC73: = | AD73: =[1]нзт2!$E$3 -> 1000 | AH73: НЗТмакс | AM73: = | AN73: =[1]нзт2!$C$3 -> 12.1
Z74: НЗТ | AC74: = | AD74: =IF([1]график!C9>0,CONCATENATE(AN72," + [(",AN73," - ", AN72,") / (",AD73," - ", AD72,")] x (",F76," - ",AD72,") x ",AY72," = "),"") ->  | BC74: =IF([1]график!C9>0,ROUND((AN72 + ((AN73-AN72) / (AD73-AD72)) * (F76-AD72))*AY72,2),0) -> 0 | BH74: ч-дн. | BL74: ИНТЕРПОЛЯЦИЯ + %
C75: =IF($A$32=TRUE,"конкурсный коэффициент / НДС","конкурсный коэффициент") -> конкурсный коэффициент / НДС | Z75: Кконкурс | AF75: = | AG75: 1 | AV75: =IF($A$32=TRUE,"НДС "&$A$33&"% =","") -> НДС 20% = | BC75: =IF(AND([1]график!C9>0,$A$32=TRUE),ROUND(BC74*$AQ$24*AR71*(1+0.5*(AY71-1))*AG75*$A$33/100,2),"") ->  | BH75: =IF(AND([1]график!C9>0,$A$32=TRUE),"руб.","") -> 
C76: ХОБ | E76: = | F76: =AR31 -> 49 | K76: =[1]нзт2!A4 -> м² | Z76: ЦПР | AC76: = | AD76: =IF(AND([1]график!C9>0,$A$32=TRUE),CONCATENATE("[",BC74," x ",$AQ$24," x ",AR71," x [1 + 0,5 x (",AY71," - 1)] х ",AG75,"] + ",BC75," = "),CONCATENATE("[",BC74," x ",$AQ$24," x ",AR71," x [1 + 0,5 x (",AY71," - 1)] х ",AG75,"] = ")) -> [0 x 307,7 x x [1 + 0,5 x ( - 1)] х 1] = | BC76: =IFERROR(IF(AND([1]график!C9>0,$A$32=TRUE),ROUND(BC74*$AQ$24*AR71*(1+0.5*(AY71-1))*AG75+BC75,2),ROUND(BC74*$AQ$24*AR71*(1+0.5*(AY71-1))*AG75,2)),) -> 0 | BH76: руб. | BL76: =BC76*20/120 -> 0
C77: =[1]график!A10 -> 2.3 | E77: =[1]график!B10 -> разработка и согласование бизнес-плана инвестиционного проекта | BC77: гл. 1 ССР
C78: =IF([1]график!C10>0,"Приложение 2 МУ, табл. 2.3, поз. "&[1]нзт2!A2&"-"&[1]нзт2!A3&" ("&AY79*100&"%)","") ->  | Z78: период: | AD78: =IF([1]график!C10>0,[1]график!C10,"") ->  | AI78: - | AJ78: =IF([1]график!E10>0,[1]график!E10,"") ->  | AO78: IН | AQ78: = | AR78: =[1]график!F10 ->  | AV78: IУ | AX78: = | AY78: =[1]график!G10 -> 
Z79: Xмин | AC79: = | AD79: =[1]нзт2!$E$2 -> 300 | AH79: НЗТмин | AM79: = | AN79: =[1]нзт2!$C$2 -> 9.5 | AU79: УВНЗТ | AX79: = | AY79: 0.65
Z80: Xмакс | AC80: = | AD80: =[1]нзт2!$E$3 -> 1000 | AH80: НЗТмакс | AM80: = | AN80: =[1]нзт2!$C$3 -> 12.1
Z81: НЗТ | AC81: = | AD81: =IF([1]график!C10>0,CONCATENATE(AN79," + [(",AN80," - ", AN79,") / (",AD80," - ", AD79,")] x (",F83," - ",AD79,") x ",AY79," = "),"") ->  | BC81: =IF([1]график!C10>0,ROUND((AN79 + ((AN80-AN79) / (AD80-AD79)) * (F83-AD79))*AY79,2),0) -> 0 | BH81: ч-дн. | BL81: ИНТЕРПОЛЯЦИЯ + %
C82: =IF($A$32=TRUE,"конкурсный коэффициент / НДС","конкурсный коэффициент") -> конкурсный коэффициент / НДС | Z82: Кконкурс | AF82: = | AG82: 1 | AV82: =IF($A$32=TRUE,"НДС "&$A$33&"% =","") -> НДС 20% = | BC82: =IF(AND([1]график!C10>0,$A$32=TRUE),ROUND(BC81*$AQ$24*AR78*(1+0.5*(AY78-1))*AG82*$A$33/100,2),"") ->  | BH82: =IF(AND([1]график!C10>0,$A$32=TRUE),"руб.","") -> 
C83: ХОБ | E83: = | F83: =AR31 -> 49 | K83: =[1]нзт2!A4 -> м² | Z83: ЦПР | AC83: = | AD83: =IF(AND([1]график!C10>0,$A$32=TRUE),CONCATENATE("[",BC81," x ",$AQ$24," x ",AR78," x [1 + 0,5 x (",AY78," - 1)] х ",AG82,"] + ",BC82," = "),CONCATENATE("[",BC81," x ",$AQ$24," x ",AR78," x [1 + 0,5 x (",AY78," - 1)] х ",AG82,"] = ")) -> [0 x 307,7 x x [1 + 0,5 x ( - 1)] х 1] = | BC83: =IFERROR(IF(AND([1]график!C10>0,$A$32=TRUE),ROUND(BC81*$AQ$24*AR78*(1+0.5*(AY78-1))*AG82+BC82,2),ROUND(BC81*$AQ$24*AR78*(1+0.5*(AY78-1))*AG82,2)),) -> 0 | BH83: руб. | BL83: =BC83*20/120 -> 0
C84: =[1]график!A11 -> 2.4 | E84: =[1]график!B11 -> разработка и согласование задания на проектирование | BC84: гл. 1 ССР
C85: =IF([1]график!C11>0,"Приложение 2 МУ, табл. 2.3, поз. "&[1]нзт2!A2&"-"&[1]нзт2!A3&" ("&AY86*100&"%)","") ->  | Z85: период: | AD85: =IF([1]график!C11>0,[1]график!C11,"") ->  | AI85: - | AJ85: =IF([1]график!E11>0,[1]график!E11,"") ->  | AO85: IН | AQ85: = | AR85: =[1]график!F11 ->  | AV85: IУ | AX85: = | AY85: =[1]график!G11 -> 
Z86: Xмин | AC86: = | AD86: =[1]нзт2!$E$2 -> 300 | AH86: НЗТмин | AM86: = | AN86: =[1]нзт2!$C$2 -> 9.5 | AU86: УВНЗТ | AX86: = | AY86: 0.19
Z87: Xмакс | AC87: = | AD87: =[1]нзт2!$E$3 -> 1000 | AH87: НЗТмакс | AM87: = | AN87: =[1]нзт2!$C$3 -> 12.1
Z88: НЗТ | AC88: = | AD88: =IF([1]график!C11>0,CONCATENATE(AN86," + [(",AN87," - ", AN86,") / (",AD87," - ", AD86,")] x (",F90," - ",AD86,") x ",AY86," = "),"") ->  | BC88: =IF([1]график!C11>0,ROUND((AN86 + ((AN87-AN86) / (AD87-AD86)) * (F90-AD86))*AY86,2),0) -> 0 | BH88: ч-дн. | BL88: ИНТЕРПОЛЯЦИЯ + %
C89: =IF($A$32=TRUE,"конкурсный коэффициент / НДС","конкурсный коэффициент") -> конкурсный коэффициент / НДС | Z89: Кконкурс | AF89: = | AG89: 1 | AV89: =IF($A$32=TRUE,"НДС "&$A$33&"% =","") -> НДС 20% = | BC89: =IF(AND([1]график!C11>0,$A$32=TRUE),ROUND(BC88*$AQ$24*AR85*(1+0.5*(AY85-1))*AG89*$A$33/100,2),"") ->  | BH89: =IF(AND([1]график!C11>0,$A$32=TRUE),"руб.","") -> 
C90: ХОБ | E90: = | F90: =AR31 -> 49 | K90: =[1]нзт2!A4 -> м² | Z90: ЦПР | AC90: = | AD90: =IF(AND([1]график!C11>0,$A$32=TRUE),CONCATENATE("[",BC88," x ",$AQ$24," x ",AR85," x [1 + 0,5 x (",AY85," - 1)] х ",AG89,"] + ",BC89," = "),CONCATENATE("[",BC88," x ",$AQ$24," x ",AR85," x [1 + 0,5 x (",AY85," - 1)] х ",AG89,"] = ")) -> [0 x 307,7 x x [1 + 0,5 x ( - 1)] х 1] = | BC90: =IFERROR(IF(AND([1]график!C11>0,$A$32=TRUE),ROUND(BC88*$AQ$24*AR85*(1+0.5*(AY85-1))*AG89+BC89,2),ROUND(BC88*$AQ$24*AR85*(1+0.5*(AY85-1))*AG89,2)),) -> 0 | BH90: руб. | BL90: =BC90*20/120 -> 0
C91: Итого по группе 2: | AY91: НЗТ | BB91: = | BC91: =BC67+BC74+BC81+BC88 -> 0 | BH91: ч-дн.
AY92: ЦПР | BB92: = | BC92: =BC69+BC76+BC83+BC90 -> 0 | BH92: руб.
C93: =[1]график!A12 -> 3 | E93: =[1]график!B12 -> УСЛУГИ ПО ПОЛУЧЕНИЮ ЗЕМЕЛЬНОГО УЧАСТКА И РАЗРЕШИТЕЛЬНОЙ ДОКУМЕНТАЦИИ
C94: =[1]график!A13 -> 3.1 | E94: =[1]график!B13 -> организация процедуры получения земельного участка | BC94: п.31.1 гл. 10 ССР
C95: ="Приложение 3 МУ, табл. 3.5, поз."&IF([1]нзт3!B12=[1]нзт3!D7,[1]нзт3!C7,IF([1]нзт3!B12=[1]нзт3!D8,[1]нзт3!C8,IF([1]нзт3!B12=3,[1]нзт3!C9,IF([1]нзт3!B12=[1]нзт3!D10,[1]нзт3!C10,[1]нзт3!C11)))) -> Приложение 3 МУ, табл. 3.5, поз.И030505а | Z95: период: | AD95: =IF([1]график!C13>0,[1]график!C13,"") ->  | AI95: - | AJ95: =IF([1]график!E13>0,[1]график!E13,"") ->  | AO95: IН | AQ95: = | AR95: =[1]график!F13 ->  | AV95: IУ | AX95: = | AY95: =[1]график!G13 -> 
C96: ="("&IF([1]нзт3!B12=[1]нзт3!D7,[1]нзт3!D7,IF([1]нзт3!B12=[1]нзт3!D8,[1]нзт3!D8,IF([1]нзт3!B12=[1]нзт3!D9,[1]нзт3!D9,IF([1]нзт3!B12=[1]нзт3!D10,[1]нзт3!D10,[1]нзт3!D11))))&")" -> ((К-3) здания и сооружения третьего класса сложности) | Z96: НЗТ | AC96: = | AD96: =IF([1]график!C13>0,IF([1]нзт3!B12=[1]нзт3!D7,[1]нзт3!E7,IF([1]нзт3!B12=[1]нзт3!D8,[1]нзт3!E8,IF([1]нзт3!B12=[1]нзт3!D9,[1]нзт3!E9,IF([1]нзт3!B12=[1]нзт3!D10,[1]нзт3!E10,[1]нзт3!E11)))),"") ->  | BC96: =IF([1]график!C13>0,AD96,) -> 0 | BH96: ч-дн.
C97: корректирующие коэффициенты | Z97: =IF([1]график!C13>0,IF([1]нзт3!J6=[1]нзт3!J7,[1]нзт3!G7,IF([1]нзт3!J6=[1]нзт3!J8,[1]нзт3!G8,IF([1]нзт3!J6=[1]нзт3!J9,[1]нзт3!G9,IF([1]нзт3!J6=[1]нзт3!J10,[1]нзт3!G10,[1]нзт3!G11)))),"") ->  | AC97: = | AD97: =IF([1]график!C13>0,IF([1]нзт3!J6=[1]нзт3!J7,[1]нзт3!H7,IF([1]нзт3!J6=[1]нзт3!J8,[1]нзт3!H8,IF([1]нзт3!J6=[1]нзт3!J9,[1]нзт3!H9,IF([1]нзт3!J6=[1]нзт3!J10,[1]нзт3!H10,[1]нзт3!H11)))),"") ->  | AH97: НЗТУФ | AK97: = | AL97: =IF(AND([1]график!C13>0,AD97>0),CONCATENATE(AD96," x ",AD97," = "),"") ->  | BC97: =IF(AND([1]график!C13>0,AD97>0),BC96*AD97,AD96) ->  | BH97: ч-дн.
C98: =IF($A$32=TRUE,"конкурсный коэффициент / НДС","конкурсный коэффициент") -> конкурсный коэффициент / НДС | Z98: Кконкурс | AF98: = | AG98: 1 | AV98: =IF($A$32=TRUE,"НДС "&$A$33&"% =","") -> НДС 20% = | BC98: =IF(AND([1]график!C13>0,$A$32=TRUE),ROUND((BC97*$AQ$24*AR95*(1+0.5*(AY95-1))*AG98)*$A$33/100,2),"") ->  | BH98: =IF(AND([1]график!C13>0,$A$32=TRUE),"руб.","") -> 
Z99: ЦПР | AC99: = | AD99: =IF(AND([1]график!C13>0,$A$32=TRUE),CONCATENATE("[",BC97," x ",$AQ$24," x ",AR95," x [1 + 0,5 x (",AY95," - 1) х ",AG98,"] + ",BC98," = "),CONCATENATE("[",BC97," x ",$AQ$24," x ",AR95," x [1 + 0,5 x (",AY95," - 1)] х ",AG98,"] = ")) -> [ x 307,7 x x [1 + 0,5 x ( - 1)] х 1] = | BC99: =IFERROR(IF(AND([1]график!C13>0,$A$32=TRUE),ROUND(BC97*$AQ$24*AR95*(1+0.5*(AY95-1))*AG98+BC98,2),ROUND(BC97*$AQ$24*AR95*(1+0.5*(AY95-1))*AG98,2)),) -> 0 | BH99: руб. | BL99: =BC99*20/120 -> 0
C100: =[1]график!A14 -> 3.2 | E100: =[1]график!B14 -> организация получения и анализа разрешительной документации | BC100: п.31.1 гл. 10 ССР
C101: ="Приложение 3 МУ, табл. 3.6, поз."&IF([1]нзт3!B12=[1]нзт3!D7,[1]нзт3!C16,IF([1]нзт3!B12=[1]нзт3!D8,[1]нзт3!C17,IF([1]нзт3!B12=[1]нзт3!D9,[1]нзт3!C18,IF([1]нзт3!B12=[1]нзт3!D10,[1]нзт3!C19,[1]нзт3!C20)))) -> Приложение 3 МУ, табл. 3.6, поз.И030603а | Z101: период: | AD101: =IF([1]график!C14>0,[1]график!C14,"") ->  | AI101: - | AJ101: =IF([1]график!E14>0,[1]график!E14,"") ->  | AO101: IН | AQ101: = | AR101: =[1]график!F14 ->  | AV101: IУ | AX101: = | AY101: =[1]график!G14 -> 
C102: ="("&IF([1]нзт3!B12=[1]нзт3!D7,[1]нзт3!D7,IF([1]нзт3!B12=[1]нзт3!D8,[1]нзт3!D8,IF([1]нзт3!B12=[1]нзт3!D9,[1]нзт3!D9,IF([1]нзт3!B12=[1]нзт3!D10,[1]нзт3!D10,[1]нзт3!D11))))&")" -> ((К-3) здания и сооружения третьего класса сложности) | Z102: НЗТ | AC102: = | AD102: =IF([1]график!C14>0,IF([1]нзт3!B12=[1]нзт3!D7,[1]нзт3!E16,IF([1]нзт3!B12=[1]нзт3!D8,[1]нзт3!E17,IF([1]нзт3!B12=[1]нзт3!D9,[1]нзт3!E18,IF([1]нзт3!B12=[1]нзт3!D10,[1]нзт3!E19,[1]нзт3!E20)))),"") ->  | BC102: =IF([1]график!C14>0,AD102,) -> 0 | BH102: ч-дн.
C103: корректирующие коэффициенты | Z103: =IF([1]график!C14>0,IF([1]нзт3!J15=[1]нзт3!J16,[1]нзт3!G16,IF([1]нзт3!J15=[1]нзт3!J17,[1]нзт3!G17,IF([1]нзт3!J15=[1]нзт3!J18,[1]нзт3!G18,"")))) -> FALSE | AC103: = | AD103: =IF([1]график!C14>0,IF([1]нзт3!J15=[1]нзт3!J16,[1]нзт3!H16,IF([1]нзт3!J15=[1]нзт3!J17,[1]нзт3!H17,IF([1]нзт3!J15=[1]нзт3!J18,[1]нзт3!H18,"")))) -> FALSE | AH103: НЗТУФ | AK103: = | AL103: =IF(AND([1]график!C14>0,AD103>0),CONCATENATE(AD102," x ",AD103," = "),"") ->  | BC103: =IF(AND([1]график!C14>0,AD103>0),BC102*AD103,AD102) ->  | BH103: ч-дн.
C104: =IF($A$32=TRUE,"конкурсный коэффициент / НДС","конкурсный коэффициент") -> конкурсный коэффициент / НДС | Z104: Кконкурс | AF104: = | AG104: 1 | AV104: =IF($A$32=TRUE,"НДС "&$A$33&"% =","") -> НДС 20% = | BC104: =IF(AND([1]график!C14>0,$A$32=TRUE),ROUND((BC103*$AQ$24*AR101*(1+0.5*(AY101-1))*AG104)*$A$33/100,2),"") ->  | BH104: =IF(AND([1]график!C14>0,$A$32=TRUE),"руб.","") -> 
Z105: ЦПР | AC105: = | AD105: =IF(AND([1]график!C14>0,$A$32=TRUE),CONCATENATE("[",BC103," x ",$AQ$24," x ",AR101," x [1 + 0,5 x (",AY101," - 1)] х ",AG104,"] + ",BC104," = "),CONCATENATE("[",BC103," x ",$AQ$24," x ",AR101," x [1 + 0,5 x (",AY101," - 1)] х ",AG104,"] = ")) -> [ x 307,7 x x [1 + 0,5 x ( - 1)] х 1] = | BC105: =IFERROR(IF(AND([1]график!C14>0,$A$32=TRUE),ROUND(BC103*$AQ$24*AR101*(1+0.5*(AY101-1))*AG104+BC104,2),ROUND(BC103*$AQ$24*AR101*(1+0.5*(AY101-1))*AG104,2)),) -> 0 | BH105: руб. | BL105: =BC105*20/120 -> 0
C106: Итого по группе 3: | AY106: НЗТ | BB106: = | BC106: =BC102+BC96 -> 0 | BH106: ч-дн.
AY107: ЦПР | BB107: = | BC107: =BC105+BC99 -> 0 | BH107: руб.
C108: =[1]график!A15 -> 4 | E108: =[1]график!B15 -> УСЛУГИ ПО ОРГАНИЗАЦИИ РАЗРАБОТКИ ДОКУМЕНТАЦИИ ПРОЕКТНОГО ОБЕСПЕЧЕНИЯ СТРОИТЕЛЬНОЙ ДЕЯТЕЛЬНОСТИ
C109: =[1]график!A16 -> 4.1 | E109: =[1]график!B16 -> обеспечение общего руководства проектированием и планированием строительства | BC109: п.31.1 гл. 10 ССР
C110: ="СНЗТ И0-2023, табл. 1.1, поз. "&[1]нзт4!P8 -> СНЗТ И0-2023, табл. 1.1, поз. И010127а-И010128а | Z110: период: | AD110: =IF([1]график!C16>0,[1]график!C16,"") ->  | AI110: - | AJ110: =IF([1]график!E16>0,[1]график!E16,"") ->  | AO110: IН | AQ110: = | AR110: =[1]график!F16 ->  | AV110: IУ | AX110: = | AY110: =[1]график!G16 -> 
Z111: Xмин | AC111: = | AD111: =[1]нзт4!P5 -> 17557.04 | AI111: НЗТмин | AM111: = | AN111: =[1]нзт4!P3 -> 56
Z112: Xмакс | AC112: = | AD112: =[1]нзт4!P6 -> 26335.49 | AI112: НЗТмакс | AM112: = | AN112: =[1]нзт4!P4 -> 78
Z113: НЗТ | AC113: = | AD113: =IF([1]график!C16>0,CONCATENATE(AN111," + [(",AN112," - ", AN111,") / (",AD112," - ", AD111,")] x (",F115," - ",AD111,") = "),"") ->  | BC113: =IF([1]график!C16>0,ROUND(AN111 + ((AN112-AN111) / (AD112-AD111)) * (F115-AD111),2),) -> 0 | BH113: ч-дн. | BL113: ИНТЕРПОЛЯЦИЯ
C114: =IF($A$32=TRUE,"конкурсный коэффициент / НДС","конкурсный коэффициент") -> конкурсный коэффициент / НДС | Z114: Кконкурс | AF114: = | AG114: 1 | AV114: =IF($A$32=TRUE,"НДС "&$A$33&"% =","") -> НДС 20% = | BC114: =IF(AND([1]график!C16>0,$A$32=TRUE),ROUND(BC113*$AQ$24*AR110*(1+0.5*(AY110-1))*AG114*$A$33/100,2),"") ->  | BH114: =IF(AND([1]график!C16>0,$A$32=TRUE),"руб.","") -> 
C115: ХОБ | E115: = | F115: =AR32 -> 17583 | K115: тыс.руб. | Z115: ЦПР | AC115: = | AD115: =IF(AND([1]график!C16>0,$A$32=TRUE),CONCATENATE("[",BC113," x ",$AQ$24," x ",AR110," x [1 + 0,5 x (",AY110," - 1)] х ",AG114,"] + ",BC114," = "),CONCATENATE("[",BC113," x ",$AQ$24," x ",AR110," x [1 + 0,5 x (",AY110," - 1)] х ",AG114,"] = ")) -> [0 x 307,7 x x [1 + 0,5 x ( - 1)] х 1] = | BC115: =IFERROR(IF(AND([1]график!C16>0,$A$32=TRUE),ROUND(BC113*$AQ$24*AR110*(1+0.5*(AY110-1))*AG114+BC114,2),ROUND(BC113*$AQ$24*AR110*(1+0.5*(AY110-1))*AG114,2)),) -> 0 | BH115: руб. | BL115: =BC115*20/120 -> 0
C116: СНЗТ И2-2023, табл. 2.2, поз. И220201 | Z116: период: | AD116: =IF([1]график!C16>0,[1]график!C16,"") ->  | AI116: - | AJ116: =IF([1]график!E16>0,[1]график!E16,"") ->  | AO116: IН | AQ116: = | AR116: =[1]график!F16 ->  | AV116: IУ | AX116: = | AY116: =[1]график!G16 -> 
C117: хозяйственно-бытовая канализация диаметром 160 мм | Z117: Xмин | AC117: = | AD117: 100 | AH117: НЗТмин | AM117: = | AN117: 0.3
Z118: Xмакс | AC118: = | AD118: 300 | AH118: НЗТмакс | AM118: = | AN118: 0.69
Z119: НЗТ | AC119: = | AD119: =CONCATENATE(AN117," + [(",AN118," - ", AN117,") / (",AD118," - ", AD117,")] x (",F123," - ",AD117,") = ") -> 0,3 + [(0,69 - 0,3) / (300 - 100)] x (107 - 100) = | BC119: =ROUND(AN117 + ((AN118-AN117) / (AD118-AD117)) * (F123-AD117),2) -> 0.31 | BH119: ч-дн. | BL119: ИНТЕРПОЛЯЦИЯ
C120: участки с уклоном поверхности свыше 30% | Z120: КИ2.103 | AC120: = | AD120: 1.1 | AG120: ХУФ | AI120: = | AJ120: 60 | AM120: КФ | AO120: = | AP120: =CONCATENATE("1 + (",AD120," - 1) x ",AJ120," / ",F123) -> 1 + (1,1 - 1) x 60 / 107 | BB120: = | BC120: =ROUND(1 + (AD120 - 1) *(AJ120 / F123),2) -> 1.06
C121: искусственное основание | Z121: КИ1.304 | AC121: = | AD121: 1.2 | AG121: ХУФ | AI121: = | AJ121: 100 | AM121: КФ | AO121: = | AP121: =CONCATENATE("1 + (1 - ",AD121,") x ",AJ121," / ",F123) -> 1 + (1 - 1,2) x 100 / 107 | BB121: = | BC121: =ROUND(1 + (AD121 - 1) *(AJ121 / F123),2) -> 1.19 | BL121: =(1+(BC120-1)+(BC121-1)) -> 1.25
Z122: НЗТУФ | AC122: = | AD122: =CONCATENATE(BC119," x [1 + (",BC120," - 1) + (",BC121," - 1)] = ",BC119," x ",BL121," = ") -> 0,31 x [1 + (1,06 - 1) + (1,19 - 1)] = 0,31 x 1,25 = | BC122: =ROUND(BC119*BL121,2)*0 -> 0 | BH122: ч-дн.
C123: ХОБ | E123: = | F123: 107 | K123: метров | Z123: ЦПР | AC123: = | AD123: =CONCATENATE(BC122," x ",$AQ$24," x ", AR116," x [1 + 0,5 x (",AY116," - 1)] = ") -> 0 x 307,7 x x [1 + 0,5 x ( - 1)] = | BC123: =ROUND(BC122*$AQ$24*AR116*(1+0.5*(AY116-1)),2) ->  | BH123: руб.
C124: СНЗТ И4-2023, табл. 2.1, поз. И420112 | Z124: период: | AD124: =IF([1]график!C16>0,[1]график!C16,"") ->  | AI124: - | AJ124: =IF([1]график!E16>0,[1]график!E16,"") ->  | AO124: IН | AQ124: = | AR124: =[1]график!F16 ->  | AV124: IУ | AX124: = | AY124: =[1]график!G16 -> 
C125: местный проезд | Z125: Xмин | AC125: = | AD125: 0.5 | AH125: НЗТмин | AM125: = | AN125: 1
Z126: Xмакс | AC126: = | AD126: 1 | AH126: НЗТмакс | AM126: = | AN126: 1.9
Z127: НЗТ | AC127: = | AD127: =CONCATENATE(AN125," + [(",AN126," - ", AN125,") / (",AD126," - ", AD125,")] x (",F128," - ",AD125,") = ") -> 1 + [(1,9 - 1) / (1 - 0,5)] x (0,79 - 0,5) = | BC127: =ROUND(AN125 + ((AN126-AN125) / (AD126-AD125)) * (F128-AD125),2)*0 -> 0 | BH127: ч-дн. | BL127: ИНТЕРПОЛЯЦИЯ
C128: ХОБ | E128: = | F128: 0.79 | K128: километров | Z128: ЦПР | AC128: = | AD128: =CONCATENATE(BC127," x ",$AQ$24," x ", AR124," x [1 + 0,5 x (",AY124," - 1)] = ") -> 0 x 307,7 x x [1 + 0,5 x ( - 1)] = | BC128: =ROUND(BC127*$AQ$24*AR124*(1+0.5*(AY124-1)),2) ->  | BH128: руб.
C129: Итого по группе 4: | AY129: НЗТ | BB129: = | BC129: =BC113+BC122+BC127 -> 0 | BH129: ч-дн.
AY130: ЦПР | BB130: = | BC130: =BC115 -> 0 | BH130: руб.
C131: =[1]график!A17 -> 5 | E131: =[1]график!B17 -> УСЛУГИ ПО ОСВОЕНИЮ СТРОИТЕЛЬНОЙ ПЛОЩАДКИ
C132: =[1]график!A18 -> 5.1 | E132: =[1]график!B18 -> организация сноса и разборки существующих зданий и сооружений | BC132: п.31.1 гл. 10 ССР
C133: Приложение 1 МУ, табл. 1.1 | Z133: период: | AD133: =IF([1]график!C18>0,[1]график!C18,"") ->  | AI133: - | AJ133: =IF([1]график!E18>0,[1]график!E18,"") ->  | AO133: IН | AQ133: = | AR133: =[1]график!F18 ->  | AV133: IУ | AX133: = | AY133: =[1]график!G18 -> 
C134: =D33 -> Удаление и пересадка объектов растительного мира | Z134: Xмин | AC134: = | AD134: =[1]нзт5!P5 -> 17557.04 | AI134: НЗТмин | AM134: = | AN134: =[1]нзт5!P3 -> 1125.5
Z135: Xмин+1 | AC135: = | AD135: =[1]нзт5!P6 -> 26335.49 | AI135: НЗТмин+2 | AM135: = | AN135: =[1]нзт5!P4 -> 1586.9
Z136: НЗТ | AC136: = | AD136: =IF([1]график!C18>0,CONCATENATE(AN134," + [ (",AN135," - ", AN134,") / (",AD135," - ", AD134,") ] х (",F138," - ",AD134,") х 0,8 = "),"") ->  | BC136: =IF([1]график!C18>0,ROUND(AN134 - ((AN135-AN134) / (AD135-AD134)) * (AD134-F138) * 0.8,2),) -> 0 | BH136: ч-дн. | BL136: экстраполяция вниз
C137: =IF($A$32=TRUE,"конкурсный коэффициент / НДС","конкурсный коэффициент") -> конкурсный коэффициент / НДС | Z137: Кконкурс | AF137: = | AG137: 1 | AV137: =IF($A$32=TRUE,"НДС "&$A$33&"% =","") -> НДС 20% = | BC137: =IF(AND([1]график!C18>0,$A$32=TRUE),ROUND(BC136*$AQ$24*AR133*(1+0.5*(AY133-1))*AG137*$A$33/100,2),"") ->  | BH137: =IF(AND([1]график!C18>0,$A$32=TRUE),"руб.","") -> 
C138: ХОБ | E138: = | F138: =AR32 -> 17583 | M138: тыс.руб. | Z138: ЦПР | AC138: = | AD138: =IF(AND([1]график!C18>0,$A$32=TRUE),CONCATENATE("[",BC136," x ",$AQ$24," x ",AR133," x [1 + 0,5 x (",AY133," - 1)] х ",AG137,"] + ",BC137," = "),CONCATENATE("[",BC136," x ",$AQ$24," x ",AR133," x [1 + 0,5 x (",AY133," - 1) х ",AG137,"] = ")) -> [0 x 307,7 x x [1 + 0,5 x ( - 1) х 1] = | BC138: =IFERROR(IF(AND([1]график!C18>0,$A$32=TRUE),ROUND(BC136*$AQ$24*AR133*(1+0.5*(AY133-1))*AG137+BC137,2),ROUND(BC136*$AQ$24*AR133*(1+0.5*(AY133-1))*AG137,2)),) -> 0 | BH138: руб. | BL138: =BC138*20/120 -> 0
C139: Приложение 1 МУ, табл. 1.1 | Z139: период: | AD139: =IF([1]график!C18>0,[1]график!C19,"") ->  | AI139: - | AJ139: =IF([1]график!E18>0,[1]график!E19,"") ->  | AO139: IН | AQ139: = | AR139: =[1]график!F18 ->  | AV139: IУ | AX139: = | AY139: =[1]график!G18 -> 
C140: снос выносимой сети водопровода | Z140: Xмин | AC140: = | AD140: 0 | AH140: НЗТмин | AM140: = | AN140: 0
Z141: Xмин+1 | AC141: = | AD141: 0 | AH141: НЗТмин+1 | AM141: = | AN141: 0
Z142: НЗТ | AC142: = | AD142: =IF([1]график!C19>0,CONCATENATE(AN140," + [ (",AN141," - ", AN140,") / (",AD141," - ", AD140,") ] х (",F143," - ",AD140,") х 0,8 = "),"") ->  | BH142: ч-дн. | BL142: экстраполяция вниз
C143: ХОБ | E143: = | F143: 3.5 | K143: тыс.руб. | Z143: ЦПР | AC143: = | AD143: =IF([1]график!C19>0,CONCATENATE(BC142," x ",$AQ$24," x ", AR139," x [1 + 0,5 x (",AY139," - 1)] = "),"") ->  | BC143: =IF([1]график!C19>0,ROUND(BC142*$AQ$24*AR139*(1+0.5*(AY139-1)),2),) -> 0 | BH143: руб.
C144: =[1]график!A19 -> 5.2 | E144: =[1]график!B19 -> организация выноса (переноса) сооружений взамен сносимых | BC144: п.31.1 гл. 10 ССР
C145: СНЗТ И2-2023, табл. 2.1, поз. И220102 | Z145: период: | AD145: =IF([1]график!C19>0,[1]график!C19,"") ->  | AI145: - | AJ145: =IF([1]график!E19>0,[1]график!E19,"") ->  | AO145: IН | AQ145: = | AR145: =[1]график!F19 ->  | AV145: IУ | AX145: = | AY145: =[1]график!G19 -> 
C146: возведение водопровода диаметром 250 мм взамен выносимого | Z146: Xмин | AC146: = | AH146: НЗТмин | AM146: =
Z147: Xмин+1 | AC147: = | AH147: НЗТмин+1 | AM147: =
Z148: НЗТ | AC148: = | AD148: =IF([1]график!C19>0,CONCATENATE(AN146," - [ (",AN147," - ", AN146,") / (",AD147," - ", AD146,") ] х (",F150," - ",AD146,") х 0,8 = "),"") ->  | BC148: =IF([1]график!C19>0,ROUND(AN146 - ((AN147-AN146) / (AD147-AD146)) * (F150-AD146)*0.8,2),) -> 0 | BH148: ч-дн. | BL148: экстраполяция вниз
C149: =IF($A$32=TRUE,"конкурсный коэффициент / НДС","конкурсный коэффициент") -> конкурсный коэффициент / НДС | Z149: Кконкурс | AF149: = | AG149: 1 | AV149: =IF($A$32=TRUE,"НДС "&$A$33&"% =","") -> НДС 20% = | BC149: =IF(AND([1]график!C19>0,$A$32=TRUE),ROUND(BC148*$AQ$24*AR145*(1+0.5*(AY145-1))*AG149*$A$33/100,2),"") ->  | BH149: =IF(AND([1]график!C19>0,$A$32=TRUE),"руб.","") -> 
C150: ХОБ | E150: = | F150: 520 | K150: метров | Z150: ЦПР | AC150: = | AD150: =IF(AND([1]график!C19>0,$A$32=TRUE),CONCATENATE("[",BC148," x ",$AQ$24," x ",AR145," x [1 + 0,5 x (",AY145," - 1)] х ",AG149,"] + ",BC149," = "),CONCATENATE("[",BC148," x ",$AQ$24," x ",AR145," x [1 + 0,5 x (",AY145," - 1)] х ",AG149,"] = ")) -> [0 x 307,7 x x [1 + 0,5 x ( - 1)] х 1] = | BC150: =IFERROR(IF(AND([1]график!C19>0,$A$32=TRUE),ROUND(BC148*$AQ$24*AR145*(1+0.5*(AY145-1))*AG149+BC149,2),ROUND(BC148*$AQ$24*AR145*(1+0.5*(AY145-1))*AG149,2)),) -> 0 | BH150: руб. | BL150: =BC150*20/120 -> 0
C151: =[1]график!A20 -> 5.3 | E151: =[1]график!B20 -> организация реализации имущественных прав граждан и организаций при изъятии у них земельных участков | BC151: п.31.1 гл. 10 ССР
C152: Индивидуальные НЗТ | Z152: период: | AD152: =IF([1]график!C20>0,[1]график!C20,"") ->  | AI152: - | AJ152: =IF([1]график!E20>0,[1]график!E20,"") ->  | AO152: IН | AQ152: = | AR152: =[1]график!F20 ->  | AV152: IУ | AX152: = | AY152: =[1]график!G20 -> 
C153: (расчет [И2]) | Z153: НЗТ | AC153: = | BC153: =AD153 -> 0 | BH153: ч-дн.
C154: =IF($A$32=TRUE,"конкурсный коэффициент / НДС","конкурсный коэффициент") -> конкурсный коэффициент / НДС | Z154: Кконкурс | AF154: = | AG154: 1 | AV154: =IF($A$32=TRUE,"НДС "&$A$33&"% =","") -> НДС 20% = | BC154: =IF(AND([1]график!C20>0,$A$32=TRUE),ROUND((AD153*$AQ$24*AR152*(1+0.5*(AY152-1))*AG154)*$A$33/100,2),"") ->  | BH154: =IF(AND([1]график!C20>0,$A$32=TRUE),"руб.","") -> 
Z155: ЦПР | AC155: = | AD155: =IF(AND([1]график!C20>0,$A$32=TRUE),CONCATENATE("[",AD153," x ",$AQ$24," x ",AR152," x [1 + 0,5 x (",AY152," - 1)] х ",AG154,"] + ",BC154," = "),CONCATENATE("[",AD153," x ",$AQ$24," x ",AR152," x [1 + 0,5 x (",AY152," - 1) х ",AG154,"] = ")) -> [ x 307,7 x x [1 + 0,5 x ( - 1) х 1] = | BC155: =IFERROR(IF(AND([1]график!C20>0,$A$32=TRUE),ROUND(AD153*$AQ$24*AR152*(1+0.5*(AY152-1))*AG154+BC154,2),ROUND(AD153*$AQ$24*AR152*(1+0.5*(AY152-1))*AG154,2)),) -> 0 | BH155: руб. | BL155: =BC155*20/120 -> 0
C156: =[1]график!A21 -> 5.4 | E156: =[1]график!B21 -> организация мероприятий по удалению и (или) пересадке объектов растительного мира | BC156: п.31.1 гл. 10 ССР
C157: ="Приложение 2 МУ, табл. 2.5, поз."&[1]нзт5!AB49&"-"&[1]нзт5!AB50 -> Приложение 2 МУ, табл. 2.5, поз.И020501b-И020501c | Z157: период: | AD157: =IF([1]график!C21>0,[1]график!C21,"") ->  | AI157: - | AJ157: =IF([1]график!E21>0,[1]график!E21,"") ->  | AO157: IН | AQ157: = | AR157: =[1]график!F21 ->  | AV157: IУ | AX157: = | AY157: =[1]график!G21 -> 
C158: любой объект строительства | Z158: Xмин | AC158: = | AD158: =[1]нзт5!AD48 -> 0.5 | AH158: НЗТмин | AM158: = | AN158: =[1]нзт5!AB48 -> 4.9
Z159: Xмакс | AC159: = | AD159: =IF(F165>0,[1]нзт5!AD47,) -> 0 | AH159: НЗТмакс | AM159: = | AN159: =IF(F165>0,[1]нзт5!AB47,) -> 0
Z160: НЗТ | AC160: = | AD160: =IF([1]график!C21>0,CONCATENATE(AN158," + [(",AN159," - ", AN158,") / (",AD159," - ", AD158,")] x (",F165," - ",AD158,") = "),"") ->  | BC160: =IF([1]график!C21>0,ROUND(AN158 + ((AN159-AN158) / (AD159-AD158)) * (F165-AD158),2),) -> 0 | BH160: ч-дн. | BL160: ИНТЕРПОЛЯЦИЯ
C161: отсутствие вредного возд. на животный мир | Z161: КИ0.201 | AC161: = | AD161: 0.6 | AG161: ХУФ | AI161: = | AJ161: =F165 -> 0 | AM161: КФ | AO161: = | AP161: =CONCATENATE("1 + (",AD161," - 1) x ",AJ161," / ",F165) -> 1 + (0,6 - 1) x 0 / 0 | BB161: = | BC161: =ROUND(1 + (AD161 - 1) *(AJ161 / F165),2) -> 
C162: плотность растений 150-300 на 1 га | Z162: КИ1.304 | AC162: = | AD162: 1.1 | AG162: ХУФ | AI162: = | AJ162: 0.6 | AM162: КФ | AO162: = | AP162: =CONCATENATE("1 + (",AD162," - 1) x ",AJ162," / ",F165) -> 1 + (1,1 - 1) x 0,6 / 0 | BB162: = | BC162: =ROUND(1 + (AD162 - 1) *(AJ162 / F165),2) ->  | BL162: =(1+(BC161-1)+(BC162-1)) -> 
Z163: НЗТУФ | AC163: = | AD163: =IF([1]график!C21>0,CONCATENATE(BC160," x [1 + (",BC161," - 1) + (",BC162," - 1)] = ",BC160," x ",BL162," = "),"") ->  | BC163: =IF([1]график!C21>0,ROUND(BC160*BL162,2),) -> 0 | BH163: ч-дн.
C164: =IF($A$32=TRUE,"конкурсный коэффициент / НДС","конкурсный коэффициент") -> конкурсный коэффициент / НДС | Z164: Кконкурс | AF164: = | AG164: 1 | AV164: =IF($A$32=TRUE,"НДС "&$A$33&"% =","") -> НДС 20% = | BC164: =IF(AND([1]график!C21>0,$A$32=TRUE),ROUND(BC163*$AQ$24*AR157*(1+0.5*(AY157-1))*AG164*$A$33/100,2),"") ->  | BH164: =IF(AND([1]график!C21>0,$A$32=TRUE),"руб.","") -> 
C165: ХОБ | E165: = | F165: =AR33 -> 0 | K165: га | Z165: ЦПР | AC165: = | AD165: =IF(AND([1]график!C21>0,$A$32=TRUE),CONCATENATE("[",BC163," x ",$AQ$24," x ",AR157," x [1 + 0,5 x (",AY157," - 1)] х ",AG164,"] + ",BC164," = "),CONCATENATE("[",BC163," x ",$AQ$24," x ",AR157," x [1 + 0,5 x (",AY157," - 1)] х ",AG164,"] = ")) -> [0 x 307,7 x x [1 + 0,5 x ( - 1)] х 1] = | BC165: =IFERROR(IF(AND([1]график!C21>0,$A$32=TRUE),ROUND(BC163*$AQ$24*AR157*(1+0.5*(AY157-1))*AG164+BC164,2),ROUND(BC163*$AQ$24*AR157*(1+0.5*(AY157-1))*AG164,2)),) -> 0 | BH165: руб. | BL165: =BC165*20/120 -> 0
C166: =[1]график!A22 -> 5.5 | E166: =[1]график!B22 -> организация геодезических работ | BC166: п.31.1 гл. 10 ССР
C167: ="Приложение 2 МУ, табл. 2.6, поз."&IF([1]нзт1!$P$6=1,[1]нзт5!AB66&"-"&[1]нзт5!AB67,IF([1]нзт1!$P$6=2,[1]нзт5!AB78&"-"&[1]нзт5!AB79,[1]нзт5!AB90&"-"&[1]нзт5!AB91)) -> Приложение 2 МУ, табл. 2.6, поз.И020603c-И020603d | Z167: период: | AD167: =IF([1]график!C22>0,[1]график!C22,"") ->  | AI167: - | AJ167: =IF([1]график!E22>0,[1]график!E22,"") ->  | AO167: IН | AQ167: = | AR167: =[1]график!F22 ->  | AV167: IУ | AX167: = | AY167: =[1]график!G22 -> 
Z168: Xмин | AC168: = | AD168: =IF([1]нзт1!$P$6=1,[1]нзт5!AD65,IF([1]нзт1!$P$6=2,[1]нзт5!AD77,[1]нзт5!AD89)) -> 1 | AH168: НЗТмин | AM168: = | AN168: =IF([1]нзт1!$P$6=1,[1]нзт5!AB65,IF([1]нзт1!$P$6=2,[1]нзт5!AB77,[1]нзт5!AB89)) -> 5.1
C169: =IF([1]нзт1!$P$6=1,[1]нзт1!$R$3,IF([1]нзт1!$P$6=2,[1]нзт1!$R$4,[1]нзт1!$R$5)) -> линейный объект строительства | Z169: Xмакс | AC169: = | AD169: =IF([1]нзт1!$P$6=1,[1]нзт5!AD64,IF([1]нзт1!$P$6=2,[1]нзт5!AD76,[1]нзт5!AD88)) -> 0.5 | AH169: НЗТмакс | AM169: = | AN169: =IF([1]нзт1!$P$6=1,[1]нзт5!AB64,IF([1]нзт1!$P$6=2,[1]нзт5!AB76,[1]нзт5!AB88)) -> 4.8
Z170: НЗТ | AC170: = | AD170: =IF([1]график!C22>0,CONCATENATE(AN168," + [ (",AN169," - ", AN168,") / (",AD169," - ", AD168,") ] x (",F172," - ",AD168,") = "),"") ->  | BC170: =IF([1]график!C22>0,ROUND(AN168 + ((AN169-AN168) / (AD169-AD168)) * (F172-AD168),2),) -> 0 | BH170: ч-дн. | BL170: ИНТЕРПОЛЯЦИЯ
C171: =IF($A$32=TRUE,"конкурсный коэффициент / НДС","конкурсный коэффициент") -> конкурсный коэффициент / НДС | Z171: Кконкурс | AF171: = | AG171: 1 | AV171: =IF($A$32=TRUE,"НДС "&$A$33&"% =","") -> НДС 20% = | BC171: =IF(AND([1]график!C22>0,$A$32=TRUE),ROUND(BC170*$AQ$24*AR167*(1+0.5*(AY167-1))*AG171*$A$33/100,2),"") ->  | BH171: =IF(AND([1]график!C22>0,$A$32=TRUE),"руб.","") -> 
C172: ХОБ | E172: = | F172: =AR33 -> 0 | K172: га | Z172: ЦПР | AC172: = | AD172: =IF(AND([1]график!C22>0,$A$32=TRUE),CONCATENATE("[",BC170," x ",$AQ$24," x ",AR167," x [1 + 0,5 x (",AY167," - 1)] х ",AG171,"] + ",BC171," = "),CONCATENATE("[",BC170," x ",$AQ$24," x ",AR167," x [1 + 0,5 x (",AY167," - 1)] х ",AG171,"] = ")) -> [0 x 307,7 x x [1 + 0,5 x ( - 1)] х 1] = | BC172: =IFERROR(IF(AND([1]график!C22>0,$A$32=TRUE),ROUND(BC170*$AQ$24*AR167*(1+0.5*(AY167-1))*AG171+BC171,2),ROUND(BC170*$AQ$24*AR167*(1+0.5*(AY167-1))*AG171,2)),) -> 0 | BH172: руб. | BL172: =BC172*20/120 -> 0
C173: =[1]график!A23 -> 5.6 | E173: =[1]график!B23 -> организация работ по инженерному обустройству строительной площадки | BC173: п.31.1 гл. 10 ССР
C174: ="Приложение 2 МУ, табл. 2.7, поз."&IF([1]нзт1!P6=1,[1]нзт5!AB106&"-"&[1]нзт5!AB107,IF([1]нзт1!P6=2,[1]нзт5!AB118&"-"&[1]нзт5!AB119,[1]нзт5!AB130&"-"&[1]нзт5!AB131)) -> Приложение 2 МУ, табл. 2.7, поз.И020703c-И020703d | Z174: период: | AD174: =IF([1]график!C23>0,[1]график!C23,"") ->  | AI174: - | AJ174: =IF([1]график!E23>0,[1]график!E23,"") ->  | AO174: IН | AQ174: = | AR174: =[1]график!F23 ->  | AV174: IУ | AX174: = | AY174: =[1]график!G23 -> 
Z175: Xмин | AC175: = | AD175: =IF([1]нзт1!$P$6=1,[1]нзт5!AD105,IF([1]нзт1!$P$6=2,[1]нзт5!AD117,[1]нзт5!AD129)) -> 1 | AH175: НЗТмин | AM175: = | AN175: =IF([1]нзт1!$P$6=1,[1]нзт5!AB105,IF([1]нзт1!$P$6=2,[1]нзт5!AB117,[1]нзт5!AB129)) -> 8.4
C176: =IF([1]нзт1!$P$6=1,[1]нзт1!$R$3,IF([1]нзт1!$P$6=2,[1]нзт1!$R$4,[1]нзт1!$R$5)) -> линейный объект строительства | Z176: Xмакс | AC176: = | AD176: =IF([1]нзт1!$P$6=1,[1]нзт5!AD104,IF([1]нзт1!$P$6=2,[1]нзт5!AD116,[1]нзт5!AD128)) -> 0.5 | AH176: НЗТмакс | AM176: = | AN176: =IF([1]нзт1!$P$6=1,[1]нзт5!AB104,IF([1]нзт1!$P$6=2,[1]нзт5!AB116,[1]нзт5!AB128)) -> 8.1
Z177: НЗТ | AC177: = | AD177: =IF([1]график!C23>0,CONCATENATE(AN175," + [ (",AN176," - ", AN175,") / (",AD176," - ", AD175,") ] x (",F179," - ",AD175,") = "),"") ->  | BC177: =IF([1]график!C23>0,ROUND(AN175 + ((AN176-AN175) / (AD176-AD175)) * (F179-AD175),2),0) -> 0 | BH177: ч-дн. | BL177: ИНТЕРПОЛЯЦИЯ
C178: =IF($A$32=TRUE,"конкурсный коэффициент / НДС","конкурсный коэффициент") -> конкурсный коэффициент / НДС | Z178: Кконкурс | AF178: = | AG178: 1 | AV178: =IF($A$32=TRUE,"НДС "&$A$33&"% =","") -> НДС 20% = | BC178: =IF(AND([1]график!C23>0,$A$32=TRUE),ROUND(BC177*$AQ$24*AR174*(1+0.5*(AY174-1))*AG178*$A$33/100,2),"") ->  | BH178: =IF(AND([1]график!C23>0,$A$32=TRUE),"руб.","") -> 
C179: ХОБ | E179: = | F179: =AR33 -> 0 | K179: га | Z179: ЦПР | AC179: = | AD179: =IF(AND([1]график!C23>0,$A$32=TRUE),CONCATENATE("[",BC177," x ",$AQ$24," x ",AR174," x [1 + 0,5 x (",AY174," - 1)] х ",AG178,"] + ",BC178," = "),CONCATENATE("[",BC177," x ",$AQ$24," x ",AR174," x [1 + 0,5 x (",AY174," - 1)] х ",AG178,"] = ")) -> [0 x 307,7 x x [1 + 0,5 x ( - 1)] х 1] = | BC179: =IFERROR(IF(AND([1]график!C23>0,$A$32=TRUE),ROUND(BC177*$AQ$24*AR174*(1+0.5*(AY174-1))*AG178+BC178,2),ROUND(BC177*$AQ$24*AR174*(1+0.5*(AY174-1))*AG178,2)),) -> 0 | BH179: руб. | BL179: =BC179*20/120 -> 0
C180: =[1]график!A24 -> 5.7 | E180: =[1]график!B24 -> организация передачи подрядчику обустроенной строительной площадки после её инженерного обустройства | BC180: п.31.1 гл. 10 ССР
C181: ="Приложение 2 МУ, табл. 2.8, поз."&IF([1]нзт1!$P$6=1,[1]нзт5!AB146&"-"&[1]нзт5!AB147,IF([1]нзт1!$P$6=2,[1]нзт5!AB158&"-"&[1]нзт5!AB159,[1]нзт5!AB170&"-"&[1]нзт5!AB171)) -> Приложение 2 МУ, табл. 2.8, поз.И020803c-И020803d | Z181: период: | AD181: =IF([1]график!C24>0,[1]график!C24,"") ->  | AI181: - | AJ181: =IF([1]график!E24>0,[1]график!E24,"") ->  | AO181: IН | AQ181: = | AR181: =[1]график!F24 ->  | AV181: IУ | AX181: = | AY181: =[1]график!G24 -> 
Z182: Xмин | AC182: = | AD182: =IF([1]нзт1!$P$6=1,[1]нзт5!AD145,IF([1]нзт1!$P$6=2,[1]нзт5!AD157,[1]нзт5!AD169)) -> 1 | AH182: НЗТмин | AM182: = | AN182: =IF([1]нзт1!$P$6=1,[1]нзт5!AB145,IF([1]нзт1!$P$6=2,[1]нзт5!AB157,[1]нзт5!AB169)) -> 1.1
C183: =IF([1]нзт1!$P$6=1,[1]нзт1!$R$3,IF([1]нзт1!$P$6=2,[1]нзт1!$R$4,[1]нзт1!$R$5)) -> линейный объект строительства | Z183: Xмакс | AC183: = | AD183: =IF([1]нзт1!$P$6=1,[1]нзт5!AD144,IF([1]нзт1!$P$6=2,[1]нзт5!AD156,[1]нзт5!AD168)) -> 0.5 | AH183: НЗТмакс | AM183: = | AN183: =IF([1]нзт1!$P$6=1,[1]нзт5!AB144,IF([1]нзт1!$P$6=2,[1]нзт5!AB156,[1]нзт5!AB168)) -> 1
Z184: НЗТ | AC184: = | AD184: =IF([1]график!C24>0,CONCATENATE(AN182," + [ (",AN183," - ", AN182,") / (",AD183," - ", AD182,") ] x (",F186," - ",AD182,") = "),"") ->  | BC184: =IF([1]график!C24>0,ROUND(AN182 + ((AN183-AN182) / (AD183-AD182)) * (F186-AD182),2),) -> 0 | BH184: ч-дн. | BL184: ИНТЕРПОЛЯЦИЯ
C185: =IF($A$32=TRUE,"конкурсный коэффициент / НДС","конкурсный коэффициент") -> конкурсный коэффициент / НДС | Z185: Кконкурс | AF185: = | AG185: 1 | AV185: =IF($A$32=TRUE,"НДС "&$A$33&"% =","") -> НДС 20% = | BC185: =IF(AND([1]график!C24>0,$A$32=TRUE),ROUND(BC184*$AQ$24*AR181*(1+0.5*(AY181-1))*AG185*$A$33/100,2),"") ->  | BH185: =IF(AND([1]график!C24>0,$A$32=TRUE),"руб.","") -> 
C186: ХОБ | E186: = | F186: =AR33 -> 0 | K186: га | Z186: ЦПР | AC186: = | AD186: =IF(AND([1]график!C24>0,$A$32=TRUE),CONCATENATE("[",BC184," x ",$AQ$24," x ",AR181," x [1 + 0,5 x (",AY181," - 1)] х ",AG185,"] + ",BC185," = "),CONCATENATE(BC184," x ",$AQ$24," x ",AR181," x [1 + 0,5 x (",AY181," - 1)] х ",AG185,"] = ")) -> 0 x 307,7 x x [1 + 0,5 x ( - 1)] х 1] = | BC186: =IFERROR(IF(AND([1]график!C24>0,$A$32=TRUE),ROUND(BC184*$AQ$24*AR181*(1+0.5*(AY181-1))*AG185+BC185,2),ROUND(BC184*$AQ$24*AR181*(1+0.5*(AY181-1))*AG185,2)),) -> 0 | BH186: руб. | BL186: =BC186*20/120 -> 0
C187: Итого по группе 5: | AY187: НЗТ | BB187: = | BC187: =BC184+BC177+BC170+BC163+BC153+BC136+BC142+BC148 -> 0 | BH187: ч-дн.
AY188: ЦПР | BB188: = | BC188: =BC186+BC179+BC172+BC165+BC155+BC138+BC150 -> 0 | BH188: руб.
C189: =[1]график!A25 -> 6 | E189: =[1]график!B25 -> УСЛУГИ ПО УПРАВЛЕНИЮ ЗАКУПКАМИ
C190: =[1]график!A26 -> 6.1 | E190: =CONCATENATE([1]график!B26," (справочно)") -> организация выбора разработчика предпроектной документации (справочно) | BC190: учт. в ст-ти предпр.
C191: ="Приложение 3 МУ, табл. 3.1, поз."&[1]нзт6!AB5 -> Приложение 3 МУ, табл. 3.1, поз.И030103а | Z191: период: | AD191: =IF([1]график!C26>0,[1]график!C26,"") ->  | AI191: - | AJ191: =IF([1]график!E26>0,[1]график!E26,"") ->  | AO191: IН | AQ191: = | AR191: =[1]график!F26 ->  | AV191: IУ | AX191: = | AY191: =[1]график!G26 -> 
C192: =[1]нзт6!AD3 -> предельная стоим. стр-ва от 10000 до 50000 тыс.руб. | Z192: НЗТ | AC192: = | AD192: =IF([1]график!C26>0,[1]нзт6!P4,"") ->  | BC192: =IF([1]график!C26>0,AD192,) -> 0 | BH192: ч-дн.
C193: =IF([1]нзт6!$AI$3=[1]нзт6!$AI$5,"закупка из одного источника, КИ1.301=0,5","") ->  | Z193: КИ1.301 | AC193: = | AD193: =IF([1]график!C26>0,IF([1]нзт6!AI3=[1]нзт6!AI5,[1]нзт6!AG5,),) -> 0 | AH193: НЗТУФ | AK193: = | AL193: =IF(AND([1]график!C26>0,[1]нзт6!AI3=[1]нзт6!AI5),CONCATENATE(AD192," x ",AD193," = "),"") ->  | BC193: =IF(AD193>0,ROUND(BC192*AD193,2),BC192) -> 0 | BH193: ч-дн. | BM193: =нзт6!AI4:AI5
C194: =IF($A$32=TRUE,"конкурсный коэффициент / НДС","конкурсный коэффициент") -> конкурсный коэффициент / НДС | Z194: Кконкурс | AF194: = | AG194: 1 | AV194: =IF($A$32=TRUE,"НДС "&$A$33&"% =","") -> НДС 20% = | BC194: =IF(AND([1]график!C26>0,$A$32=TRUE),ROUND(BC192*$AQ$24*AR191*(1+0.5*(AY191-1))*AG194*$A$33/100,2),"") ->  | BH194: =IF(AND([1]график!C26>0,$A$32=TRUE),"руб.","") -> 
Z195: ЦПР | AC195: = | AD195: =IF(AND([1]график!C26>0,$A$32=TRUE),CONCATENATE("[",BC193," x ",$AQ$24," x ",AR191," x [1 + 0,5 x (",AY191," - 1)] х ",AG194,"] + ",BC194," = "),CONCATENATE("[",BC193," x ",$AQ$24," x ",AR191," x [1 + 0,5 x (",AY191," - 1)] х ",AG194,"] = ")) -> [0 x 307,7 x x [1 + 0,5 x ( - 1)] х 1] = | BC195: =IFERROR(IF(AND([1]график!C26>0,$A$32=TRUE),ROUND(BC193*$AQ$24*AR191*(1+0.5*(AY191-1))*AG194+BC194,2),ROUND(BC193*$AQ$24*AR191*(1+0.5*(AY191-1))*AG194,2)),) -> 0 | BH195: руб. | BL195: =BC195*20/120 -> 0
C196: =[1]график!A27 -> 6.2 | E196: =[1]график!B27 -> организация выбора поставщиков технологического оборудования | BC196: учт. в ст-ти оборуд.
C197: ="Приложение 3 МУ, табл. 3.3, поз."&IF([1]нзт6!AA20=[1]нзт6!AA21,[1]нзт6!V21,IF([1]нзт6!AA20=[1]нзт6!AA22,[1]нзт6!V22,IF([1]нзт6!AA20=[1]нзт6!AA23,[1]нзт6!V23,IF([1]нзт6!AA20=[1]нзт6!AA24,[1]нзт6!V24,[1]нзт6!V25)))) -> Приложение 3 МУ, табл. 3.3, поз.И030305а | Z197: период: | AD197: =IF([1]график!C27>0,[1]график!C27,"") ->  | AI197: - | AJ197: =IF([1]график!E27>0,[1]график!E27,"") ->  | AO197: IН | AQ197: = | AR197: =[1]график!F27 ->  | AV197: IУ | AX197: = | AY197: =[1]график!G27 -> 
C198: ="ориентир. "&[1]нзт6!AA20 -> ориентир. стоим. закупки от 100 0000 тыс.руб. и более | Z198: количество процедур закупок: = | AO198: 1 | AS198: НЗТ | AV198: = | AW198: =IF([1]график!C27>0,IF([1]нзт6!AA20=[1]нзт6!AA21,[1]нзт6!Y21,IF([1]нзт6!AA20=[1]нзт6!AA22,[1]нзт6!Y22,IF([1]нзт6!AA20=[1]нзт6!AA23,[1]нзт6!Y23,IF([1]нзт6!AA20=[1]нзт6!AA24,[1]нзт6!Y24,[1]нзт6!Y25)))),"") ->  | BC198: =AW198 ->  | BH198: ч-дн.
C199: =IF([1]нзт6!AI44=[1]нзт6!AI45,[1]нзт6!AI45,IF([1]нзт6!AI44=[1]нзт6!AI46,[1]нзт6!AI46,[1]нзт6!AI47)) -> без технологического уклада | Z199: КИ1.303 | AC199: = | AD199: =IF([1]график!C27>0,IF([1]нзт6!AI44=[1]нзт6!AI46,[1]нзт6!AG46,IF([1]нзт6!AI44=[1]нзт6!AI47,[1]нзт6!AG47,)),) -> 0
C200: =IF([1]нзт6!AI39=[1]нзт6!AI41,"оригинальные хар-ки","без оригинальных хар-к") -> без оригинальных хар-к | Z200: КИ1.304 | AC200: = | AD200: =IF([1]график!C27>0,IF([1]нзт6!AI39=[1]нзт6!AI41,[1]нзт6!AG41,),) -> 0 | AH200: НЗТУФ | AK200: = | AL200: =IF(AND([1]график!C27>0,AD199+AD200+AD201>0),CONCATENATE(BC198&" х [1 + (",IF(AD199>0,("("&AD199&"-1)"),""),IF(AND(AD199>0,AD200>0),("+"),""),IF(AD200>0,("("&AD200&"-1)"),""),IF(AND(AD200>0,AD201>0),("+"),""),IF(AD201>0,("("&AD201&"-1)"),""),")] х",AO198,""),"") ->  | BC200: =IF([1]график!C27>0,BC198*(1+(IF(AD199>0,AD199-1,)+IF(AD200>0,AD200-1,)+IF(AD201>0,AD201-1,)))*AO198,) -> 0 | BH200: ч-дн. | BM200: =BC192*(1+(AD193-1)+(AD194-1)+(AD195-1))*AO192
C201: =IF([1]нзт6!AI34=[1]нзт6!AI36,"закупка из одного источника, КИ1.305=0,5","") ->  | Z201: КИ1.305 | AC201: = | AD201: =IF([1]график!C27>0,IF([1]нзт6!AI34=[1]нзт6!AI36,[1]нзт6!AG36,),) -> 0 | BM201: =BC198*AD199*AD200*AD201 -> 
C202: =IF($A$32=TRUE,"конкурсный коэффициент / НДС","конкурсный коэффициент") -> конкурсный коэффициент / НДС | Z202: Кконкурс | AF202: = | AG202: 1 | AV202: =IF($A$32=TRUE,"НДС "&$A$33&"% =","") -> НДС 20% = | BC202: =IF(AND([1]график!C27>0,$A$32=TRUE),ROUND(BC200*$AQ$24*AR197*(1+0.5*(AY197-1))*AG202*$A$33/100,2),"") ->  | BH202: =IF(AND([1]график!C27>0,$A$32=TRUE),"руб.","") -> 
Z203: ЦПР | AC203: = | AD203: =IF(AND([1]график!C27>0,$A$32=TRUE),CONCATENATE("[",BC200," x ",$AQ$24," x ",AR197," x [1 + 0,5 x (",AY197," - 1)] х ",AG202,"] + ",BC202," = "),CONCATENATE("[",BC200," x ",$AQ$24," x ",AR197," x [1 + 0,5 x (",AY197," - 1)] х ",AG202,"] = ")) -> [0 x 307,7 x x [1 + 0,5 x ( - 1)] х 1] = | BC203: =IFERROR(IF(AND([1]график!C27>0,$A$32=TRUE),ROUND(BC200*$AQ$24*AR197*(1+0.5*(AY197-1))*AG202+BC202,2),ROUND(BC200*$AQ$24*AR197*(1+0.5*(AY197-1))*AG202,2)),) -> 0 | BH203: руб. | BL203: =BC203*20/120 -> 0
C204: =[1]график!A28 -> 6.3 | E204: =[1]график!B28 -> организация выбора генеральной проектной организации (при генподрядной схеме разработки проектной документации) | BC204: п.31.1 гл. 10 ССР
C205: ="Приложение 3 МУ, табл. 3.1, поз."&[1]нзт6!AB5 -> Приложение 3 МУ, табл. 3.1, поз.И030103а | Z205: период: | AD205: =IF([1]график!C28>0,[1]график!C28,"") ->  | AI205: - | AJ205: =IF([1]график!E28>0,[1]график!E28,"") ->  | AO205: IН | AQ205: = | AR205: =[1]график!F28 ->  | AV205: IУ | AX205: = | AY205: =[1]график!G28 -> 
C206: =[1]нзт6!AD3 -> предельная стоим. стр-ва от 10000 до 50000 тыс.руб. | Z206: НЗТ | AC206: = | AD206: =IF([1]график!C28>0,[1]нзт6!P4,"") ->  | BC206: =IF([1]график!C28>0,AD206,) -> 0 | BH206: ч-дн.
C207: =IF([1]нзт6!AI8=[1]нзт6!AI10,"закупка из одного источника, КИ1.301=0,5","") ->  | Z207: КИ1.301 | AC207: = | AD207: =IF([1]график!C28>0,IF([1]нзт6!AI8=[1]нзт6!AI10,[1]нзт6!AG10,),) -> 0 | AH207: НЗТУФ | AK207: = | AL207: =IF(AND([1]график!C28>0,[1]нзт6!AI8=[1]нзт6!AI10),CONCATENATE(AD206," x ",AD207," = "),"") ->  | BC207: =IF(AD207>0,(ROUND(BC206*AD207,2)),BC206) -> 0 | BH207: ч-дн.
C208: =IF($A$32=TRUE,"конкурсный коэффициент / НДС","конкурсный коэффициент") -> конкурсный коэффициент / НДС | Z208: Кконкурс | AF208: = | AG208: 1 | AV208: =IF($A$32=TRUE,"НДС "&$A$33&"% =","") -> НДС 20% = | BC208: =IF(AND([1]график!C28>0,$A$32=TRUE),ROUND(BC207*$AQ$24*AR205*(1+0.5*(AY205-1))*AG208*$A$33/100,2),"") ->  | BH208: =IF(AND([1]график!C28>0,$A$32=TRUE),"руб.","") -> 
Z209: ЦПР | AC209: = | AD209: =IF(AND([1]график!C28>0,$A$32=TRUE),CONCATENATE("[",BC207," x ",$AQ$24," x ",AR205," x [1 + 0,5 x (",AY205," - 1)] х ",AG208,"] + ",BC208," = "),CONCATENATE("[",BC207," x ",$AQ$24," x ",AR205," x [1 + 0,5 x (",AY205," - 1)] х ",AG208,"] = ")) -> [0 x 307,7 x x [1 + 0,5 x ( - 1)] х 1] = | BC209: =IFERROR(IF(AND([1]график!C28>0,$A$32=TRUE),ROUND(BC207*$AQ$24*AR205*(1+0.5*(AY205-1))*AG208+BC208,2),ROUND(BC207*$AQ$24*AR205*(1+0.5*(AY205-1))*AG208,2)),) -> 0 | BH209: руб. | BL209: =BC209*20/120 -> 0
C210: =[1]график!A29 -> 6.4 | E210: =[1]график!B29 -> организация выбора генеральной подрядной организации (при генподрядной схеме строительства) | BC210: п.31.1 гл. 10 ССР
C211: ="Приложение 3 МУ, табл. 3.1, поз."&[1]нзт6!AB5 -> Приложение 3 МУ, табл. 3.1, поз.И030103а | Z211: период: | AD211: =IF([1]график!C29>0,[1]график!C29,"") ->  | AI211: - | AJ211: =IF([1]график!E29>0,[1]график!E29,"") ->  | AO211: IН | AQ211: = | AR211: =[1]график!F29 ->  | AV211: IУ | AX211: = | AY211: =[1]график!G29 -> 
C212: =[1]нзт6!AD3 -> предельная стоим. стр-ва от 10000 до 50000 тыс.руб. | Z212: НЗТ | AC212: = | AD212: =IF([1]график!C29>0,[1]нзт6!P4,"") ->  | BC212: =IF([1]график!C29>0,AD212,) -> 0 | BH212: ч-дн.
C213: =IF([1]нзт6!AI13=[1]нзт6!AI15,"закупка из одного источника, КИ1.301=0,5","") ->  | Z213: КИ1.301 | AC213: = | AD213: =IF([1]график!C29>0,IF([1]нзт6!AI13=[1]нзт6!AI15,[1]нзт6!AG15,),) -> 0 | AH213: НЗТУФ | AK213: = | AL213: =IF(AND([1]график!C29>0,[1]нзт6!AI13=[1]нзт6!AI15),CONCATENATE(AD212," x ",AD213," = "),"") ->  | BC213: =IF(AD213>0,(ROUND(BC212*AD213,2)),BC212) -> 0 | BH213: ч-дн.
C214: =IF($A$32=TRUE,"конкурсный коэффициент / НДС","конкурсный коэффициент") -> конкурсный коэффициент / НДС | Z214: Кконкурс | AF214: = | AG214: 1 | AV214: =IF($A$32=TRUE,"НДС "&$A$33&"% =","") -> НДС 20% = | BC214: =IF(AND([1]график!C29>0,$A$32=TRUE),ROUND(BC213*$AQ$24*AR211*(1+0.5*(AY211-1))*AG214*$A$33/100,2),"") ->  | BH214: =IF(AND([1]график!C29>0,$A$32=TRUE),"руб.","") -> 
Z215: ЦПР | AC215: = | AD215: =IF(AND([1]график!C29>0,$A$32=TRUE),CONCATENATE("[",BC213," x ",$AQ$24," x ",AR211," x [1 + 0,5 x (",AY211," - 1)] х ",AG214,"] + ",BC214," = "),CONCATENATE("[",BC213," x ",$AQ$24," x ",AR211," x [1 + 0,5 x (",AY211," - 1)] х ",AG214,"] = ")) -> [0 x 307,7 x x [1 + 0,5 x ( - 1)] х 1] = | BC215: =IFERROR(IF(AND([1]график!C29>0,$A$32=TRUE),ROUND(BC213*$AQ$24*AR211*(1+0.5*(AY211-1))*AG214+BC214,2),ROUND(BC213*$AQ$24*AR211*(1+0.5*(AY211-1))*AG214,2)),) -> 0 | BH215: руб. | BL215: =BC215*20/120 -> 0
C216: =[1]график!A30 -> 6.5 | E216: =[1]график!B30 -> организация выбора подрядных организаций на выполнение отдельных видов работ, услуг (при подрядной схеме строительства) | BC216: учт. в ст-ти соотв. работ, услуг
C217: ="Приложение 3 МУ, табл. 3.2, поз."&IF([1]нзт6!AA11=[1]нзт6!AA12,[1]нзт6!V12,IF([1]нзт6!AA11=[1]нзт6!AA13,[1]нзт6!V13,IF([1]нзт6!AA11=[1]нзт6!AA14,[1]нзт6!V14,IF([1]нзт6!AA11=[1]нзт6!AA15,[1]нзт6!V15,[1]нзт6!V16)))) -> Приложение 3 МУ, табл. 3.2, поз.И030201а | Z217: период: | AD217: =IF([1]график!C30>0,[1]график!C30,"") ->  | AI217: - | AJ217: =IF([1]график!E30>0,[1]график!E30,"") ->  | AO217: IН | AQ217: = | AR217: =[1]график!F30 ->  | AV217: IУ | AX217: = | AY217: =[1]график!G30 -> 
... 128 more rows
